Cogmind - Beta 15 @@@ ROGUE MODE // 2025.08.10 @ 20:57:41 Player: Zoe Result: Destroyed by 8W-PAQ(R) with Subdweller Laser Performance ------------- Evolutions (0) 0 Regions Visited (2) 400 Robots Destroyed (43) 215 Value Destroyed (1176) 1176 Prototype IDs (0) 0 Alien Tech Used (0) 0 Bonus (-38) -38 TOTAL SCORE: 1753 Bonus ------- Friendly Fire -38 Cogmind --------- Core Integrity 0/250 Matter 169/300 Energy 200/200 System Corruption 2% Temperature Cool (55) Movement Treading (160) Location -10/Subcaves Parts ------- > --- POWER (1) -------- Subdweller Power Source > --- PROPULSION (2) --- Light Treads Light Treads > --- UTILITY (2) ------ Scrap Shield > --- WEAPON (2) ------- Light Cannon Light Cannon > --- INVENTORY (5) ---- Large Storage Unit Makeshift Hacking Suite Hammer Scrap Shield Fragment (49) Scrap Shield Fragment (49) Peak State ------------ > --- POWER ------------ Subdweller Power Source > --- PROPULSION ------- Light Treads Light Treads > --- UTILITY ---------- Scrap Shield > --- WEAPON ----------- Light Cannon Light Cannon > --- INVENTORY -------- Large Storage Unit Makeshift Hacking Suite Hammer Scrap Shield Fragment Scrap Shield Fragment [Rating: 11] Favorites ----------- Power Ion Engine Engine Ion Engine Propulsion Light Treads Treads Light Treads Utility Medium Armor Plating Device Seismic Detector Storage Large Storage Unit Processor Signal Interpreter Protection Medium Armor Plating Weapon Light Cannon Ballistic Gun Assault Rifle Ballistic Cannon Light Cannon Launcher Grenade Launcher Impact Weapon Hammer Build | -11 -10 -10 ------- Run | Yrd Mat Sub Slots Evolved . | . . . Power . | . . . Propulsion . | . . . Utility . | . . . Weapon . | . . . Parts Attached 28 | 7 12 9 Power 3 | 1 . 2 Engine 3 | 1 . 2 Core . | . . . Reactor . | . . . Propulsion 6 | 2 2 2 Treads 6 | 2 2 2 Leg . | . . . Wheel . | . . . Hover . | . . . Flight . | . . . Utility 9 | 2 4 3 Device 2 | 1 . 1 Storage 2 | 1 1 . Processor 2 | . 1 1 Hackware . | . . . Protection 3 | . 2 1 Artifact . | . . . Weapon 10 | 2 6 2 Energy Gun . | . . . Energy Cannon . | . . . Ballistic Gun 4 | 2 2 . Ballistic Cannon 4 | . 3 1 Launcher 1 | . . 1 Special Weapon . | . . . Impact Weapon 1 | . 1 . Slashing Weapon . | . . . Piercing Weapon . | . . . Special Melee Weapon . | . . . Unidentified Prototypes . | . . . Parts Lost 9 | . 1 8 Power 2 | . . 2 Propulsion 2 | . . 2 Utility 2 | . 1 1 Weapon 3 | . . 3 Highest Loss Streak 4 | . 1 4 To Critical Strikes . | . . . Average Backups 9 | 4 9 9 Power . | . 1 . Propulsion 1 | 1 1 1 Utility 3 | . 3 5 Weapon 3 | 1 3 2 Tool/Special . | . . . Unused Backups 13 | . 8 5 Power 1 | . 1 . Propulsion 2 | . 2 . Utility 6 | . 1 5 Weapon 4 | . 4 . Tool/Special . | . . . Average Slot Usage (%) 97 | . 99 93 Engine 13 | . 14 13 Treads 27 | . 28 27 Storage 12 | . 14 10 Processor 2 | . . 8 Protection 10 | . 13 3 Ballistic Gun 6 | . 9 . Ballistic Cannon 18 | . 18 18 Launcher 1 | . . 4 Impact Weapon 1 | . . 4 Peak Build Rating 11 | 7 10 11 Average Rating 8 | 5 8 9 On Entrance 5 | . 7 8 Naked Turns . | . . . Heaviest Build 38 | 15 38 33 Greatest Support 40 | 40 40 40 Greatest Overweight (x) 4 | 4 . 1 Average Overweight (x) . | . . . Largest Inventory Capacity 15 | 8 15 15 Average Capacity 11 | 7 11 12 Most Carried 15 | 7 13 15 Average Carried 9 | 4 9 10 Final Capacity 15 | 8 15 5 Final Carried 13 | 6 13 5 Class Distribution -------------------- 98% | Mutant Dominant Class ---------------- Mutant | -10/Materials Mutant | -10/Subcaves Resources | -11 -10 -10 ----------- Run | Yrd Mat Sub Matter Collected 1231 | 266 659 306 Remotely . | . . . Salvage Created 1202 | 112 869 221 Parts 77 | 8 49 20 Haulers Intercepted 1 | . 1 . Recyclers Shooed 3 | 1 2 . Parts Field Recycled . | . . . Retrieved Matter . | . . . Parts Self-Destructed 7 | . . 7 Prevented . | . . . Kills | -11 -10 -10 ------- Run | Yrd Mat Sub Combat Hostiles Destroyed 30 | . 17 13 Guns 13 | . 13 . Cannons 11 | . 4 7 AOE 4 | . . 4 Classes Destroyed 10 | 2 6 2 Worker 1 | . 1 . Builder 2 | . 2 . Tunneler 2 | 2 . . Hauler 1 | . 1 . Recycler 2 | 1 1 . Operator 2 | . 2 . Watcher 3 | . 3 . Swarmer 3 | . . 3 Grunt 17 | . 17 . Subdweller 10 | . . 10 Best Kill Streak 3 | 1 3 3 Combat Bots Only 3 | . 2 3 Max Kills in Single Turn 2 | 1 1 2 Gunslinging . | . . . Exploded 2 | . . 2 Melee . | . . . Uniques/NPCs Destroyed . | . . . Combat | -11 -10 -10 -------- Run | Yrd Mat Sub Hostile Shots Fired 146 | . 76 70 Missed 32 | . 16 16 Hits 114 | . 60 54 Projectile 114 | . 60 54 AOE 1 | . . 1 Critical Strikes 6 | . 2 4 Damage Taken 2123 | . 774 1349 Core 265 | . 81 184 Absorbed by Shields . | . . . Core Remaining (%) 100 | 100 . . Volleys Fired 111 | 6 73 32 Largest 2 | 2 2 2 Hottest 60 | 40 60 60 Shots Fired 218 | 12 146 60 Gun 110 | 12 98 . Cannon 102 | . 48 54 Launcher 6 | . . 6 Special . | . . . Kinetic 212 | 12 146 54 Thermal . | . . . Explosive 6 | . . 6 Electromagnetic . | . . . Robot Hit Streak 12 | 9 8 12 Robot Miss Streak 5 | 1 5 4 Penetration Max . | . . . Secondary Targets . | . . . Shots Hit Robots 137 | 10 81 46 Core Hits 60 | 4 41 15 Critical Kills 1 | . 1 . Critical Parts Destroyed 1 | . . 1 Critical Strikes 4 | . 2 2 Destroy 1 | . 1 . Blast 2 | . 1 1 Smash 1 | . . 1 Melee Attacks 9 | . 1 8 Impact 9 | . 1 8 Slashing . | . . . Piercing . | . . . Sneak Attacks . | . . . Combat Hostiles . | . . . Follow-up Attacks . | . . . Damage Inflicted 2416 | 128 1269 1019 Guns 945 | 128 817 . Cannons 1081 | . 452 629 Explosions 237 | . . 237 Melee 153 | . . 153 Ramming . | . . . Kinetic 2026 | 128 1269 629 Thermal . | . . . Explosive 237 | . . 237 Electromagnetic . | . . . Impact 153 | . . 153 Slashing . | . . . Piercing . | . . . Highest Corruption 2 | . 2 2 Average Corruption 2 | . 2 2 Corruption Purged . | . . . Corruption Blocked . | . . . Effects 16 | . 2 14 Message Errors 1 | . . 1 Matter Fused 5 | . 1 4 Heat Flow Errors 2 | . . 2 Energy Discharges 3 | . 1 2 Parts Rejected 1 | . . 1 Data Loss (major) 1 | . . 1 Misfires 2 | . . 2 Weapon Failures 1 | . . 1 Overload Shots . | . . . Overflow Damage 56 | . 21 35 Projectiles 21 | . 21 . Explosions . | . . . Melee 35 | . . 35 Knockbacks 11 | . 4 7 Impact 2 | . . 2 Kinetic 9 | . 4 5 Secondary . | . . . Self-Inflicted Damage 111 | . . 111 Shots 4 | . . 4 Rammed . | . . . Targets Rammed . | . . . Kicked . | . . . Crushed . | . . . Highest Temperature 255 | . 102 255 Average Temperature 33 | . 20 134 Received Heat Transfer 971 | . 453 518 Siege Activations . | . . . Martial Activations . | . . . Shielding Activations . | . . . Robots Disrupted . | . . . Combat Hostiles . | . . . Robots Corrupted 2 | . . 2 Combat Hostiles 2 | . . 2 Parts Fried 1 | . . 1 Impact Corruptions 2 | . . 2 Robots Melted . | . . . Combat Hostiles . | . . . Parts Melted . | . . . Heat Transferred . | . . . Parts Sabotaged . | . . . Parts Stolen . | . . . Parts Stripped . | . . . Power Chain Reactions . | . . . Alert | -11 -10 -10 ------- Run | Yrd Mat Sub Maximum Alert Level . | . . . Low Security (%) 100 | 100 100 . Level 1 . | . . . Level 2 . | . . . Level 3 . | . . . Level 4 . | . . . Level 5 . | . . . High Security . | . . . Max Security . | . . . Peak Influence 142 | 5 142 . Initial . | . . . Average 48 | 1 53 . Influence Increases 620 | 15 535 70 Destroy 0b10 Robot/C 400 | . 340 60 Destroy 0b10 Robot/NC 65 | 15 50 . Destroy Leader 98 | . 88 10 Successful Hack 22 | . 22 . Disable Machine 15 | . 15 . Destroy Structure 5 | . 5 . Lose Combat Pursuer 15 | . 15 . Influence Decreases 620 | 15 532 73 Entered New Map 3 | . . 3 Time Decay 577 | 15 522 40 Lost Part 40 | . 10 30 Squads Dispatched 6 | . 6 . Investigation 4 | . 4 . Extermination . | . . . Reinforcement 2 | . 2 . Assault . | . . . Garrison . | . . . Intercept . | . . . Searches Triggered . | . . . Construction Impeded . | . . . Haulers Reinforced . | . . . Active Scanning Responses . | . . . Cargo Convoy Interrupts . | . . . Stealth | -11 -10 -10 --------- Run | Yrd Mat Sub Distress Signals 3 | . 3 . Communications Jammed . | . . . Distress Signals . | . . . Times Spotted 50 | . 32 18 Peak Tracking Total 5 | . 4 5 Tactical Retreats 1 | . 1 . Traps | -11 -10 -10 ------- Run | Yrd Mat Sub Traps Triggered 3 | . 3 . Indirectly . | . . . Trap Hack Attempts . | . . . Triggered . | . . . Disarmed . | . . . Reprogrammed . | . . . Reused . | . . . Traps Extracted . | . . . Installed . | . . . Triggered . | . . . Machines | -11 -10 -10 ---------- Run | Yrd Mat Sub Machines Disabled 1 | . 1 . Max in Single Turn 1 | . 1 . Machines Repaired . | . . . Machines Dismantled . | . . . Machines Sabotaged . | . . . Overloaded Fab Kills . | . . . Hacking | -11 -10 -10 --------- Run | Yrd Mat Sub Machines Accessed 6 | . 6 . Terminals 5 | . 5 . Fabricators . | . . . Repair Stations . | . . . Recycling Units 1 | . 1 . Scanalyzers . | . . . Garrison Access . | . . . Total Hacks 22 | . 22 . Successful 14 | . 14 . Failed 8 | . 8 . Catastrophic . | . . . Database Lockouts . | . . . Manual 22 | . 22 . Terminals 21 | . 21 . Fabricators . | . . . Repair Stations . | . . . Recycling Units 1 | . 1 . Scanalyzers . | . . . Garrison Access . | . . . Terminal Hacks 3 | . 3 . Robot Analysis 3 | . 3 . Fabricator Hacks . | . . . Repair Station Hacks . | . . . Recycling Unit Hacks 1 | . 1 . Report Inventory 1 | . 1 . Scanalyzer . | . . . Garrison Access Hacks . | . . . Unauthorized Hacks 10 | . 10 . Terminals 10 | . 10 . Track 4 | . 4 . Botnet 5 | . 5 . Operators 1 | . 1 . Fabricators . | . . . Repair Stations . | . . . Recycling Units . | . . . Scanalyzers . | . . . Garrison Access . | . . . Data Cores Recovered . | . . . Used . | . . . Hacking Detections 6 | . 6 . Full Trace Events 4 | . 4 . Feedback Events . | . . . Feedback Blocked . | . . . Robot Schematics Acquired . | . . . Robots Built . | . . . Authchips . | . . . Time . | . . . Total Robot Build Rating . | . . . Part Schematics Acquired . | . . . Parts Built . | . . . Authchips . | . . . Time . | . . . Total Part Build Rating . | . . . Parts Repaired . | . . . Time . | . . . Parts Recycled . | . . . Recycled Matter . | . . . Retrieved Matter . | . . . Retrieved Components . | . . . Parts Scanalyzed . | . . . Part Schematics Acquired . | . . . Parts Damaged . | . . . Bothacking | -11 -10 -10 ------------ Run | Yrd Mat Sub Used RIF Installer . | . . . Robots Hacked . | . . . Non-combat . | . . . Combat . | . . . Robot Hacks Applied . | . . . Relay Couplers Released . | . . . Fabnet Peak Effective % . | . . . Robots Rewired . | . . . Allies Hacked . | . . . Hacks Repelled . | . . . Allies | -11 -10 -10 -------- Run | Yrd Mat Sub Total Allies . | . . . Largest Group . | . . . Highest-Rated Group . | . . . Highest-Rated Ally . | . . . Total Orders . | . . . Ally Attacks . | . . . Total Damage . | . . . Kills . | . . . Allies Corrupted . | . . . Allies Melted . | . . . Intel | -11 -10 -10 ------- Run | Yrd Mat Sub Active Infowar (turns) 153 | . 99 54 Optics 54 | . . 54 Seismic 99 | . 99 . Robot Analysis Total 3 | . 3 . Derelict Logs Recovered 2 | . . 2 Drone Launches . | . . . Drone Recoveries . | . . . Exploration | -11 -10 -10 ------------- Run | Yrd Mat Sub Turns Passed 2659 | 183 1764 712 Spaces Moved 1313 | 87 872 354 Core 22 | 22 . . Treads 1291 | 65 872 354 Legs . | . . . Wheels . | . . . Hover . | . . . Flight . | . . . Fastest Speed 50 | 50 160 160 Average Speed 160 | 168 160 160 Slowest Speed 250 | 250 160 240 Overloaded Moves . | . . . Propulsion Burnouts . | . . . Robots Hopped . | . . . Potential Cave-ins . | . . . Cave-ins Triggered . | . . . Exploration Rate (%) 33 | 6 78 16 Regions Visited 2 Branch Regions 1 Pre-discovered Areas . | . . . Known Exits Taken 1 | . 1 . Unknown Exits Taken 1 | 1 . . Scrap Searched 6 | . . 6 Spaces Dug . | . . . Terrain Destroyed 29 | . . 29 Melee . | . . . Projectile . | . . . AOE 29 | . . 29 Terrain Rammed . | . . . Walls Destroyed . | . . . Machines Disabled . | . . . Actions | -11 -10 -10 --------- Run | Yrd Mat Sub Total 1640 | 112 1102 426 Wait 110 | . 110 . Move 1311 | 86 871 354 Hop . | . . . Pick Up 42 | 13 20 9 Fast Attach 2 | . 2 . Attach 18 | 7 1 10 Detach . | . . . Swap 14 | . 9 5 Drop 23 | . 15 8 Fire 111 | 6 73 32 Melee 9 | . 1 8 Ram . | . . . Kick . | . . . Crush . | . . . Escape Stasis . | . . . Rewire . | . . . Trap . | . . . Miscellaneous . | . . . Route ------- -11/Scrapyard -10/Materials (discovered 3 exits: [*Mat] / [*Min] / *Sub) -10/Subcaves (discovered 2 exits: *Mat x2) History --------- Turn | Location | Event 31 | -11/Scrapyard | Discovered new exit (range 14) 184 | -11/Scrapyard | Entered Materials 315 | -10/Materials | Build established: Mutant 834 | -10/Materials | Discovered new exit (range 12) 1049 | -10/Materials | Discovered new exit (range 16) 1933 | -10/Materials | Discovered new exit (range 7) 1946 | -10/Materials | Identified exit to Subcaves 1948 | -10/Materials | Entered Subcaves 1949 | -10/Subcaves | Approached by a straggling Scientist 2077 | -10/Subcaves | Disturbed a concealed Subdweller 2163 | -10/Subcaves | Disturbed a concealed Subdweller 2168 | -10/Subcaves | Shifting Twisted Machinery released Sub. Monowheel 2168 | -10/Subcaves | Core integrity fell below 50% 2178 | -10/Subcaves | Shifting Twisted Machinery released Mak. Hacking Suite 2226 | -10/Subcaves | Lost 3 parts (1p1n1w) 2268 | -10/Subcaves | Learned Materials non-interactive machine intel 2281 | -10/Subcaves | Ambushed by swarm of Subdwellers 2302 | -10/Subcaves | Core integrity fell below 20% 2342 | -10/Subcaves | Lost 5 allies 2466 | -10/Subcaves | Lost 4 parts (1n1u2w) 2572 | -10/Subcaves | A swath of the cavern ceiling suddenly collapsed 2611 | -10/Subcaves | Identified exit to Materials 2643 | -10/Subcaves | Discovered exit to Materials (range 7) 2660 | -10/Subcaves | Destroyed by 8W-PAQ(R) with Subdweller Laser Last Messages --------------- 02469_ Acquired Scrap Shield Fragment. 02472_ Subatomizers dissect the Sub. Monowheel. 02472_ Acquired 4 matter. 02478_ Acquired 6 matter. 02495_ Subatomizers dissect the Sub. Monowheel. 02502_ Acquired Hammer. 02516_ Subatomizers dissect the Sub. Monowheel. 02516_ Acquired 14 matter. 02537_ Acquired 8 matter. 02547_ Acquired 13 matter. 02552_ System corrupted: Heat flow error (+225). 02558_ Acquired 7 matter. 02563_ Acquired 12 matter. A swath of the cavern ceiling suddenly collapses. 02572_ System corrupted: Matter fused (-8). 02611_ Acquired derelict log, extracted data. Loading 1 Subcaves exit... 02643_ EXIT=FOUND: MATERIALS 02646_ Critical hit (Meltdown: +260). Map ----- +----------------------------------------------------+ | | | | | ?????????????????????????????????????????????????? | | ?????????????????????????????????????????????????? | | ?????????????????????????????????????????????????? | | ?????????????????????????????????????????????????? | | ?????????????????????????????????????????????????? | | ?????????????????????????????????????????????????? | | ?????????????????????????????????????????????????? | | ?????????????????????????????????????????????????? | | ?????????????????????????????????????????????????? | | ?????????????????????????????????????????????????? | | ?????????????????????????????????????????????????? | | ?????????????????????????????????????????????????? | | ???????????????# ?#??????????????????????????????? | | ???????????????# ## ??#??????????????????????????? | | ???????????????# ### ?????????????????????????? | | ?????????????### ?????????????????????????? | | ?????????????? ?????????????????????????? | | ?????????????? ?????????????????????????? | | ?????????????? ??####??????????????????? | | ??????????????? " ?## ##?????????????????? | | ??????????????????# < ?# ##????????????????? | | ?????????????# #"## ## ##???????????????? | | ????????????? ""R ## ##??????????????? | | ?????????????"""% % @ #### ##?????????????? | | ??????????????#### ##??# #?????????????? | | ?????????????????#### ## #?### ##?????????????? | | ????????????????????##??##### #??????????????? | | ??????????????????????????## ##??????????????? | | ?????????????????????????## ##???????????????? | | ?????????????????????????# ##????????????????? | | ?????????????????????????## ##?????????????????? | | ?????????????????????????# ##??????????????????? | | ?????????????????????????# #???????????????????? | | ?????????????????????????## #???????????????????? | | ?????????????????????????# #???????????????????? | | ?????????????????????????# #???????????????????? | | ?????????????????????????## #???????????????????? | | ??????????????????????????# ##??????????????????? | | ??????????????????????????# #??????????????????? | | ?????????????????????????## #??????????????????? | | ?????????????????????????# #??????????????????? | | ????????????????????????# "# ##??????????????????? | | ???????????????????????# ### #???????????????????? | | ???????????????????????#?#"""##??????????????????? | | ?????????????????????????####"#####??????????????? | | ??????????????????????????""#"""""#??????????????? | | ???????????????????????????#"# #""#??????????????? | | ???????????????????????????##" ""##??????????????? | +----------------------------------------------------+ Best States ------------- Heat Dissipation 25 Energy Generation 15 Energy Capacity 250 Matter Stores 300 Matter Capacity 300 Sight Range 21 Terrain Scan Density 10 Armor Coverage 800 Evasion (%) 40 Targeting Accuracy 5 Recoil Reduction 2 Item Schematics ----------------- None Robot Schematics ------------------ None Fabricated ------------ Nothing Repaired ---------- Nothing Alien Tech Used ----------------- None Achievements -------------- Maybe Next Time I'll Detach My Launcher Challenges ------------ None Game ------ Seed AlertAccelerationFlightbrick Manual? 0 Play Time 00:25:38 Cumulative 49.1 hours Start 2025.08.10 @ 20:31:56 End 2025.08.10 @ 20:57:41 Sessions 1 Manual Loads 0 Difficulty Rogue Special Mode None Game No. 96 Rogue 93 Adventurer 3 Explorer 0 Win Type - Total 0 Types 0/0/0/0/0/0/0/0/0/0 Lore% 29 Gallery% 31 Achievement% 32 Wizard Run 0 Options --------- Layout 1 ASCII 0 Keyboard 0 Movement Mouse Keybinds 0 Fullscreen 1 Font 24/Smallcaps Map View 50x35 Zoom Use 0% Tactical HUD 1 Map Filters NONE Filters NONE Steam 1 RUN: e43b2298-d1cd-4f88-baa1-a5cffc769114